fUSD/lending_fUSD_20251211
["ID","MTS","AMOUNT","RATE_DAILY","PERIOD"]
[398233392,1765443041271,-9999.99,0.00022562,2]
[398233393,1765443041280,-999.99,0.00022562,2]
[398233394,1765443041289,-150.99,0.00022562,2]
[398233395,1765443041299,-9999.99,0.00022562,2]
[398233396,1765443041309,-4296.5,0.00022562,2]
[398233397,1765443041318,-469.0,0.00022594,2]
[398233398,1765443041327,-346.92554585,0.00023048,2]
[398233399,1765443041336,-346.0,0.00023052,2]
[398233400,1765443041346,-500.0,0.00023367,2]
[398233401,1765443041356,-500.0,0.00023367,2]
[398233402,1765443041365,-500.0,0.00023367,2]
[398233403,1765443041374,-524.26192636,0.00023367,2]
[398233404,1765443041384,-500.0,0.00023367,2]
[398233405,1765443041393,-1483.44,0.00023788,2]
[398233406,1765443041402,-167.0,0.000243,4]
[398233407,1765443041411,-359.76179104,0.00024417,2]
[398233408,1765443041420,-21457.50767027,0.00024469,2]
[398233409,1765443041429,-1741.36,0.00024493,2]
[398233410,1765443041439,-167.0,0.000246,5]
[398233411,1765443041448,-1000.0,0.00024658,2]
[398233412,1765443041457,-12268.52316778,0.00024828,2]
[398233413,1765443041467,-7229.41,0.00024919,2]
[398233414,1765443041477,-200.0,0.00025277,2]
[398233415,1765443041486,-373.07297731,0.00025786,2]
[398233416,1765443041495,-1483.44,0.00025951,120]
[398233417,1765443041505,-274.07,0.00026676,2]
[398233418,1765443041519,-165.05038579,0.00027155,2]
[398233419,1765443041528,-21457.50767027,0.00027359,2]
[398233420,1765443041538,-415.364404,0.00027437,2]
[398233421,1765443041547,-12268.52316778,0.00027658,2]
[398233422,1765443041556,-500.0,0.00028521,2]
[398233423,1765443041566,-436.02605526,0.0002888,2]
[398233424,1765443041574,-1000.0,0.0002888,2]
[398233425,1765443041584,-167.0,0.000289,31]
[398233426,1765443041593,-302.79472894,0.00029407,2]
[398233427,1765443041601,-21457.50767027,0.00030248,2]
[398233428,1765443041610,-12268.52316778,0.00030487,2]
[398233429,1765443041619,-254.54,0.00030553,14]
[398233430,1765443041628,-203.26,0.00030855,14]
[398233431,1765443041637,-2804.0,0.000312,2]
[398233432,1765443041646,-220.58547383,0.00031505,15]
[398233433,1765443041655,-500.0,0.00031671,2]
[398233434,1765443041663,-500.0,0.00031781,2]
[398233435,1765443041672,-5524.0,0.000319,3]
[398233436,1765443041681,-1000.0,0.00032629,2]
[398233437,1765443041690,-5524.0,0.000327,5]
[398233438,1765443041699,-21457.50767027,0.00033138,2]
[398233439,1765443041708,-274.07,0.00033165,2]
[398233440,1765443041717,-12268.52316778,0.00033317,2]
[398233441,1765443041726,-2065.536,0.00034361,38]
[398233442,1765443041734,-176.04069608,0.00034361,38]
[398233443,1765443041743,-150.0,0.0003475,2]
[398233444,1765443041752,-150.0,0.0003475,2]
[398233445,1765443041761,-150.0,0.0003475,2]
[398233446,1765443041769,-1630.98600811,0.00034802,3]
[398233447,1765443041778,-1606.0,0.00034812,2]
[398233448,1765443041787,-3449.0,0.00034812,2]
[398233449,1765443041796,-160.824,0.00034812,2]
[398233450,1765443041805,-612.729,0.00034812,2]
[398233451,1765443041813,-684.0,0.00034812,2]
[398233452,1765443041822,-1260.0,0.00034812,2]
[398233453,1765443041831,-150.0,0.00034812,2]
[398233454,1765443041840,-211.0,0.00034812,2]
[398233455,1765443041849,-260.0,0.00034812,2]
[398233456,1765443041858,-6516.0,0.00034812,2]
[398233457,1765443041866,-4764.0,0.00034812,2]
[398233458,1765443041875,-563.0,0.00034812,2]
[398233459,1765443041884,-150.08427247,0.00034887,2]
[398233460,1765443041893,-150.0,0.00034887,2]
[398233461,1765443041902,-278.13950023,0.00035024,2]
[398233462,1765443041911,-2000.0,0.000359,2]
[398233463,1765443041920,-167.0,0.00036,120]
[398233464,1765443041929,-1630.98600811,0.00036028,3]
[398233465,1765443041937,-21457.50767027,0.00036028,2]
[398233466,1765443041946,-1072.11497817,0.0003603,5]
[398233467,1765443041955,-290.4787632,0.00036037,60]
[398233468,1765443041963,-500.0,0.00036037,60]
[398233469,1765443041972,-504.71811745,0.00036037,60]
[398233470,1765443041982,-12268.52316778,0.00036147,2]
[398233471,1765443041991,-3261.97201622,0.00036794,4]
[398233472,1765443042000,-299.27048652,0.00036794,2]
[398233473,1765443042009,-1741.36,0.00036803,60]
[398233474,1765443042018,-500.0,0.00036804,30]
[398233475,1765443042027,-510.79850095,0.00036804,30]
[398233476,1765443042036,-500.0,0.00036804,30]
[398233477,1765443042045,-572.49907613,0.00036804,30]
[398233478,1765443042054,-501.76348649,0.00036804,30]
[398233479,1765443042063,-170.65032945,0.00036804,30]
[398233480,1765443042071,-1400.0,0.00036804,30]
[398233481,1765443042081,-1400.0,0.00036804,30]
[398233482,1765443042090,-1400.0,0.00036804,30]
[398233483,1765443042099,-1400.0,0.00036804,30]
[398233484,1765443042108,-1400.0,0.00036804,30]
[398233485,1765443042116,-1400.0,0.00036804,30]
[398233486,1765443042125,-1400.0,0.00036804,30]
[398233487,1765443042134,-1400.0,0.00036804,30]
[398233488,1765443042143,-1400.0,0.00036804,30]
[398233489,1765443042151,-1400.0,0.00036804,30]
[398233490,1765443042160,-1400.0,0.00036804,30]
[398233491,1765443042169,-1400.0,0.00036804,30]
[398233492,1765443042178,-1400.0,0.00036804,30]
[398233493,1765443042187,-1400.0,0.00036804,30]
[398233494,1765443042196,-1400.0,0.00036804,30]
[398233495,1765443042205,-1400.0,0.00036804,30]
[398233496,1765443042214,-1400.0,0.00036804,30]
[398233497,1765443042223,-1400.0,0.00036804,30]
[398233498,1765443042232,-1400.0,0.00036804,30]
[398233499,1765443042241,-1400.0,0.00036804,30]
[398233500,1765443042249,-1400.0,0.00036804,30]
[398233501,1765443042258,-1400.0,0.00036804,30]
[398233502,1765443042267,-1400.0,0.00036804,30]
[398233503,1765443042276,-1400.0,0.00036804,30]
[398233504,1765443042285,-1400.0,0.00036804,30]
[398233505,1765443042294,-1400.0,0.00036804,30]
[398233506,1765443042303,-1400.0,0.00036804,30]
[398233507,1765443042312,-2177.21694583,0.00036804,30]
[398233508,1765443042321,-150.0,0.00036888,7]
[398233509,1765443042330,-150.0,0.00036888,7]
[398233510,1765443042340,-150.0,0.00036888,7]
[398233511,1765443042349,-150.0,0.00036888,7]
[398233512,1765443042358,-150.0,0.00036888,7]
[398233513,1765443042367,-150.0,0.00036888,7]
[398233514,1765443042376,-150.0,0.00036888,7]
[398233515,1765443042386,-150.0,0.00036888,7]
[398233516,1765443042395,-150.0,0.00036888,7]
[398233517,1765443042404,-150.0,0.00036888,7]
[398233518,1765443042413,-480.8162296,0.000369,30]
[398233519,1765443042422,-172.52084603,0.00036901,60]
[398233520,1765443042432,-1000.0,0.00036901,2]
[398233521,1765443042441,-1000.0,0.00037245,2]
[398233522,1765443042450,-150.0,0.0003726,7]
[398233523,1765443042459,-150.96,0.00037281,2]
[398233524,1765443042468,-152.76,0.00037281,2]
[398233525,1765443042476,-1794.0,0.000373,7]
[398233526,1765443042485,-150.0,0.00037343,7]
[398233527,1765443042494,-150.0,0.00037343,7]
[398233528,1765443042503,-150.0,0.000374,7]
[398233529,1765443042516,-150.0,0.000374,7]
[398233530,1765443042526,-866.5,0.00037578,30]
[398233531,1765443042535,-150.0,0.00037633,7]
[398233532,1765443042544,-150.0,0.000377,2]
[398233533,1765443042554,-150.0,0.00037798,7]
[398233534,1765443042563,-150.0,0.00037798,7]
[398233535,1765443042572,-1630.98600811,0.00037802,4]
[398233536,1765443042582,-1606.0,0.00037812,2]
[398233537,1765443042591,-3449.0,0.00037812,2]
[398233538,1765443042599,-611.0,0.00037812,2]
[398233539,1765443042608,-684.0,0.00037812,2]
[398233540,1765443042617,-1260.0,0.00037812,2]
[398233541,1765443042626,-150.0,0.00037812,2]
[398233542,1765443042635,-4764.0,0.00037812,2]
[398233543,1765443042644,-563.0,0.00037812,2]
[398233544,1765443042653,-150.0,0.00037912,7]
[398233545,1765443042662,-150.0,0.00037912,7]
[398233546,1765443042671,-150.0,0.00037912,7]
[398233547,1765443042680,-150.0,0.00038005,7]
[398233548,1765443042689,-200.0,0.00038049,10]
[398233549,1765443042697,-840.81659341,0.00038156,2]
[398233550,1765443042706,-1630.98600811,0.00038236,4]
[398233551,1765443042715,-19571.8320973,0.00038246,4]
[398233552,1765443042725,-151.0,0.00038253,14]
[398233553,1765443042735,-150.0,0.00038254,7]
[398233554,1765443042744,-150.0,0.00038254,7]
[398233555,1765443042753,-500.0,0.00038255,60]
[398233556,1765443042761,-1741.36,0.00038255,60]
[398233557,1765443042771,-255555.0,0.00038256,30]
[398233558,1765443042780,-10000.0,0.00038256,2]
[398233559,1765443042789,-500.0,0.00038328,30]
[398233560,1765443042798,-500.0,0.00038328,30]
[398233561,1765443042807,-463.61392116,0.00038328,30]
[398233562,1765443042967,-16309.8600811,0.00038345,4]
[398233563,1765443042976,-151.0,0.00038353,14]
[398233564,1765443042985,-500.0,0.00038354,60]
[398233565,1765443042994,-1741.36,0.00038354,60]
[398233567,1765443043003,-229209.46974688,0.00038355,14]
[398233569,1765443043013,-500.0,0.00038355,60]
[398233571,1765443043022,-500.0,0.00038355,60]
[398233573,1765443043032,-500.0,0.00038355,60]
[398233575,1765443043040,-211.47062833,0.00038355,60]
[398233577,1765443043050,-1741.36,0.00038355,60]
[398233579,1765443043058,-1741.36,0.00038355,60]
[398233581,1765443043067,-1741.36,0.00038355,60]
[398233583,1765443043077,-500.0,0.00038356,120]
[398233585,1765443043086,-500.0,0.00038356,60]
[398233586,1765443043095,-500.0,0.00038356,60]
[398233588,1765443043105,-500.0,0.00038356,60]
[398233589,1765443043113,-500.0,0.00038356,120]
[398233590,1765443043122,-500.0,0.00038356,120]
[398233591,1765443043132,-501.01954221,0.00038356,60]
[398233592,1765443043141,-500.0,0.00038356,60]
[398233593,1765443043151,-500.0,0.00038356,60]
[398233594,1765443043160,-500.0,0.00038356,60]
[398233595,1765443043169,-500.0,0.00038356,60]
[398233596,1765443043178,-500.0,0.00038356,60]
[398233597,1765443043188,-500.0,0.00038356,60]
[398233598,1765443043197,-200.0,0.00038356,2]
[398233599,1765443043206,-502.55483017,0.00038356,60]
[398233600,1765443043215,-505.55341028,0.00038356,60]
[398233601,1765443043224,-233.6769303,0.00038356,60]
[398233602,1765443043232,-500.0,0.00038356,60]
[398233603,1765443043242,-500.0,0.00038356,60]
[398233604,1765443043251,-500.0,0.00038356,60]
[398233605,1765443043259,-500.0,0.00038356,60]
[398233606,1765443043268,-500.0,0.00038356,60]
[398233607,1765443043277,-500.0,0.00038356,60]
[398233608,1765443043286,-500.0,0.00038356,60]
[398233609,1765443043296,-500.0,0.00038356,60]
[398233610,1765443043305,-500.0,0.00038356,60]
[398233611,1765443043315,-500.0,0.00038356,60]
[398233612,1765443043324,-500.0,0.00038356,60]
[398233613,1765443043334,-500.0,0.00038356,60]
[398233614,1765443043343,-500.0,0.00038356,60]
[398233616,1765443043353,-513.07680432,0.00038356,60]
[398233617,1765443043363,-500.0,0.00038356,60]
[398233618,1765443043372,-500.0,0.00038356,60]
[398233619,1765443043381,-499.89235252,0.00038356,60]
[398233620,1765443043391,-500.0,0.00038356,60]
[398233621,1765443043400,-500.0,0.00038356,60]
[398233622,1765443043409,-500.0,0.00038356,60]
[398233623,1765443043419,-500.0,0.00038356,60]
[398233624,1765443043428,-644.20401998,0.00038356,60]
[398233625,1765443043437,-500.0,0.00038356,60]
[398233626,1765443043447,-500.0,0.00038356,60]
[398233627,1765443043456,-500.0,0.00038356,60]
[398233628,1765443043466,-500.0,0.00038356,60]
[398233629,1765443043475,-500.0,0.00038356,60]
[398233630,1765443043485,-500.0,0.00038356,60]
[398233631,1765443043494,-500.0,0.00038356,60]
[398233632,1765443043504,-500.0,0.00038356,60]
[398233633,1765443043518,-500.0,0.00038356,60]
[398233634,1765443043527,-500.0,0.00038356,60]
[398233635,1765443043536,-234.98412615,0.00038356,60]
[398233636,1765443043546,-500.0,0.00038356,60]
[398233637,1765443043556,-500.0,0.00038356,60]
[398233638,1765443043565,-500.0,0.00038356,60]
[398233639,1765443043574,-500.0,0.00038356,60]
[398233640,1765443043583,-500.0,0.00038356,60]
[398233641,1765443043593,-500.0,0.00038356,60]
[398233642,1765443043603,-500.0,0.00038356,60]
[398233643,1765443043612,-505.10703829,0.00038356,60]
[398233644,1765443043621,-500.0,0.00038356,60]
[398233645,1765443043630,-500.0,0.00038356,60]
[398233646,1765443043640,-500.0,0.00038356,60]
[398233647,1765443043648,-500.0,0.00038356,60]
[398233648,1765443043657,-500.0,0.00038356,60]
[398233649,1765443043667,-500.0,0.00038356,60]
[398233650,1765443043676,-500.0,0.00038356,60]
[398233651,1765443043685,-507.04300641,0.00038356,60]
[398233652,1765443043695,-500.0,0.00038356,60]
[398233653,1765443043704,-500.0,0.00038356,60]
[398233654,1765443043714,-500.0,0.00038356,60]
[398233655,1765443043723,-500.0,0.00038356,60]
[398233656,1765443043732,-500.0,0.00038356,60]
[398233658,1765443043742,-500.0,0.00038356,60]
[398233659,1765443043751,-500.0,0.00038356,60]
[398233660,1765443043761,-500.0,0.00038356,60]
[398233661,1765443043770,-500.0,0.00038356,60]
[398233662,1765443043779,-500.0,0.00038356,60]
[398233663,1765443043788,-500.0,0.00038356,60]
[398233664,1765443043797,-500.0,0.00038356,60]
[398233665,1765443043806,-500.0,0.00038356,60]
[398233666,1765443043815,-502.88913786,0.00038356,60]
[398233667,1765443043824,-500.0,0.00038356,60]
[398233668,1765443043833,-245.61822112,0.00038356,60]
[398233669,1765443043841,-500.0,0.00038356,60]
[398233670,1765443043850,-500.0,0.00038356,60]
[398233671,1765443043859,-500.0,0.00038356,60]
[398233672,1765443043868,-500.0,0.00038356,60]
[398233673,1765443043877,-500.0,0.00038356,60]
[398233674,1765443043886,-500.0,0.00038356,60]
[398233675,1765443043895,-500.0,0.00038356,60]
[398233676,1765443043904,-500.0,0.00038356,60]
[398233677,1765443043913,-500.0,0.00038356,60]
[398233678,1765443043922,-500.0,0.00038356,60]
[398233679,1765443043931,-500.0,0.00038356,60]
[398233680,1765443043939,-500.0,0.00038356,60]
[398233681,1765443043948,-509.96582194,0.00038356,60]
[398233682,1765443043957,-500.0,0.00038356,60]
[398233683,1765443043966,-500.0,0.00038356,60]
[398233684,1765443043975,-500.0,0.00038356,60]
[398233685,1765443043984,-503.78073516,0.00038356,60]
[398233686,1765443043994,-500.0,0.00038356,60]
[398233687,1765443044002,-500.0,0.00038356,60]
[398233688,1765443044011,-500.0,0.00038356,60]
[398233689,1765443044020,-500.0,0.00038356,60]
[398233690,1765443044029,-502.02482226,0.00038356,60]
[398233691,1765443044038,-500.0,0.00038356,60]
[398233692,1765443044047,-500.0,0.00038356,60]
[398233693,1765443044056,-500.0,0.00038356,60]
[398233694,1765443044065,-500.0,0.00038356,60]
[398233695,1765443044074,-500.0,0.00038356,60]
[398233696,1765443044083,-500.0,0.00038356,60]
[398233697,1765443044091,-500.0,0.00038356,60]
[398233698,1765443044100,-500.0,0.00038356,60]
[398233699,1765443044110,-500.0,0.00038356,60]
[398233700,1765443044119,-505.21248364,0.00038356,60]
[398233701,1765443044128,-500.0,0.00038356,60]
[398233702,1765443044137,-500.0,0.00038356,60]
[398233703,1765443044145,-500.0,0.00038356,60]
[398233704,1765443044154,-500.0,0.00038356,60]
[398233705,1765443044163,-500.0,0.00038356,60]
[398233706,1765443044172,-500.0,0.00038356,60]
[398233707,1765443044181,-500.0,0.00038356,60]
[398233708,1765443044190,-500.0,0.00038356,60]
[398233709,1765443044199,-500.0,0.00038356,60]
[398233710,1765443044209,-500.0,0.00038356,60]
[398233711,1765443044222,-500.0,0.00038356,60]
[398233712,1765443044231,-500.0,0.00038356,60]
[398233713,1765443044241,-500.0,0.00038356,60]
[398233714,1765443044250,-500.0,0.00038356,60]
[398233715,1765443044260,-500.0,0.00038356,60]
[398233716,1765443044269,-500.0,0.00038356,60]
[398233717,1765443044278,-500.0,0.00038356,60]
[398233718,1765443044286,-500.0,0.00038356,60]
[398233719,1765443044295,-500.0,0.00038356,60]
[398233720,1765443044304,-322.07522611,0.00038356,60]
[398233721,1765443044314,-507.64906003,0.00038356,60]
[398233722,1765443044323,-500.0,0.00038356,60]
[398233723,1765443044332,-500.0,0.00038356,60]
[398233724,1765443044341,-500.0,0.00038356,60]
[398233725,1765443044350,-500.0,0.00038356,60]
[398233726,1765443044359,-500.0,0.00038356,60]
[398233727,1765443044368,-500.0,0.00038356,60]
[398233728,1765443044378,-500.0,0.00038356,60]
[398233729,1765443044387,-500.60304643,0.00038356,60]
[398233730,1765443044396,-500.0,0.00038356,60]
[398233731,1765443044406,-500.0,0.00038356,60]
[398233732,1765443044415,-500.52349983,0.00038356,60]
[398233733,1765443044425,-500.0,0.00038356,60]
[398233734,1765443044434,-401.28352509,0.00038356,60]
[398233735,1765443044443,-500.0,0.00038356,60]
[398233736,1765443044452,-500.0,0.00038356,60]
[398233737,1765443044461,-503.85453011,0.00038356,60]
[398233738,1765443044470,-500.0,0.00038356,60]
[398233739,1765443044479,-500.0,0.00038356,60]
[398233740,1765443044488,-500.0,0.00038356,60]
[398233741,1765443044498,-501.92261261,0.00038356,60]
[398233742,1765443044507,-500.0,0.00038356,60]
[398233743,1765443044521,-500.0,0.00038356,60]
[398233744,1765443044530,-500.0,0.00038356,60]
[398233745,1765443044540,-500.0,0.00038356,7]
[398233746,1765443044549,-500.0,0.00038356,7]
[398233747,1765443044559,-500.0,0.00038356,60]
[398233748,1765443044568,-500.0,0.00038356,7]
[398233749,1765443044576,-500.0,0.00038356,7]
[398233750,1765443044587,-254.96368516,0.00038356,7]
[398233751,1765443044596,-500.0,0.00038356,60]
[398233752,1765443044604,-181.98,0.00038356,60]
[398233753,1765443044614,-500.0,0.00038356,60]
[398233754,1765443044622,-500.0,0.00038356,60]
[398233755,1765443044632,-500.0,0.00038356,60]
[398233756,1765443044641,-500.0,0.00038356,60]
[398233757,1765443044651,-500.0,0.00038356,60]
[398233758,1765443044660,-500.0,0.00038356,60]
[398233759,1765443044669,-500.0,0.00038356,60]
[398233760,1765443044678,-500.0,0.00038356,60]
[398233761,1765443044688,-500.0,0.00038356,60]
[398233762,1765443044697,-500.0,0.00038356,60]
[398233763,1765443044706,-494.13388206,0.00038356,60]
[398233764,1765443044715,-500.0,0.00038356,60]
[398233765,1765443044724,-500.0,0.00038356,60]
[398233766,1765443044732,-500.0,0.00038356,60]
[398233767,1765443044742,-500.0,0.00038356,60]
[398233768,1765443044751,-500.0,0.00038356,60]
[398233769,1765443044760,-500.0,0.00038356,60]
[398233770,1765443044769,-500.0,0.00038356,60]
[398233771,1765443044778,-500.0,0.00038356,60]
[398233772,1765443044787,-500.0,0.00038356,60]
[398233773,1765443044796,-500.0,0.00038356,60]
[398233774,1765443044805,-511.02018331,0.00038356,60]
[398233775,1765443044814,-500.0,0.00038356,60]
[398233776,1765443044823,-500.0,0.00038356,60]
[398233777,1765443044832,-500.0,0.00038356,60]
[398233778,1765443044842,-529.33685879,0.00038356,60]
[398233779,1765443044850,-500.0,0.00038356,60]
[398233780,1765443044860,-500.0,0.00038356,60]
[398233781,1765443044869,-500.0,0.00038356,60]
[398233782,1765443044878,-500.0,0.00038356,60]
[398233783,1765443044887,-500.87530629,0.00038356,60]
[398233784,1765443044896,-486.38165113,0.00038356,60]
[398233785,1765443044905,-500.0,0.00038356,60]
[398233786,1765443044915,-500.0,0.00038356,60]
[398233787,1765443044924,-500.0,0.00038356,60]
[398233788,1765443044933,-500.0,0.00038356,60]
[398233789,1765443044942,-500.0,0.00038356,60]
[398233790,1765443044951,-500.0,0.00038356,60]
[398233791,1765443044960,-500.0,0.00038356,60]
[398233792,1765443044970,-500.0,0.00038356,60]
[398233793,1765443044985,-501.75823319,0.00038356,60]
[398233794,1765443044996,-500.0,0.00038356,60]
[398233795,1765443045006,-500.0,0.00038356,60]
[398233796,1765443045015,-500.0,0.00038356,60]
[398233797,1765443045024,-500.0,0.00038356,60]
[398233798,1765443045032,-500.0,0.00038356,60]
[398233799,1765443045041,-500.0,0.00038356,60]
[398233800,1765443045050,-500.0,0.00038356,7]
[398233801,1765443045059,-500.0,0.00038356,7]
[398233802,1765443045068,-500.0,0.00038356,7]
[398233803,1765443045078,-502.12541043,0.00038356,60]
[398233804,1765443045087,-500.0,0.00038356,7]
[398233805,1765443045096,-500.0,0.00038356,7]
[398233806,1765443045105,-500.0,0.00038356,7]
[398233807,1765443045115,-500.0,0.00038356,7]
[398233808,1765443045124,-500.0,0.00038356,7]
[398233809,1765443045133,-500.0,0.00038356,7]
[398233810,1765443045142,-500.0,0.00038356,60]
[398233811,1765443045151,-509.43295763,0.00038356,7]
[398233812,1765443045159,-500.0,0.00038356,60]
[398233813,1765443045168,-500.0,0.00038356,60]
[398233814,1765443045178,-500.0,0.00038356,60]
[398233815,1765443045187,-500.0,0.00038356,60]
[398233816,1765443045196,-500.0,0.00038356,60]
[398233817,1765443045205,-500.0,0.00038356,60]
[398233818,1765443045255,-502.86573076,0.00038356,60]
[398233819,1765443045265,-500.0,0.00038356,60]
[398233820,1765443045274,-500.0,0.00038356,60]
[398233821,1765443045284,-500.0,0.00038356,60]
[398233822,1765443045294,-500.0,0.00038356,60]
[398233823,1765443045304,-500.0,0.00038356,60]
[398233824,1765443045313,-500.0,0.00038356,60]
[398233825,1765443045323,-500.0,0.00038356,60]
[398233826,1765443045332,-500.0,0.00038356,60]
[398233827,1765443045341,-500.0,0.00038356,60]
[398233828,1765443045350,-500.0,0.00038356,60]
[398233829,1765443045360,-500.0,0.00038356,60]
[398233830,1765443045369,-500.0,0.00038356,60]
[398233831,1765443045377,-500.0,0.00038356,60]
[398233832,1765443045387,-500.0,0.00038356,60]
[398233833,1765443045396,-500.0,0.00038356,15]
[398233834,1765443045405,-500.0,0.00038356,60]
[398233835,1765443045415,-500.0,0.00038356,60]
[398233836,1765443045424,-500.0,0.00038356,60]
[398233837,1765443045433,-500.0,0.00038356,60]
[398233838,1765443045443,-500.0,0.00038356,60]
[398233839,1765443045452,-500.0,0.00038356,60]
[398233840,1765443045461,-500.0,0.00038356,60]
[398233841,1765443045470,-448.63947378,0.00038356,60]
[398233842,1765443045479,-500.0,0.00038356,60]
[398233843,1765443045489,-500.0,0.00038356,60]
[398233844,1765443045499,-500.0,0.00038356,60]
[398233845,1765443045511,-500.0,0.00038356,60]
[398233846,1765443045522,-500.0,0.00038356,60]
[398233847,1765443045531,-500.0,0.00038356,60]
[398233848,1765443045541,-500.0,0.00038356,60]
[398233849,1765443045550,-500.0,0.00038356,60]
[398233850,1765443045559,-500.0,0.00038356,60]
[398233851,1765443045568,-500.0,0.00038356,60]
[398233852,1765443045577,-500.0,0.00038356,60]
[398233853,1765443045588,-500.0,0.00038356,60]
[398233854,1765443045597,-500.0,0.00038356,60]
[398233855,1765443045605,-500.0,0.00038356,60]
[398233856,1765443045614,-500.0,0.00038356,60]
[398233857,1765443045623,-500.0,0.00038356,60]
[398233858,1765443045632,-500.0,0.00038356,60]
[398233859,1765443045641,-500.0,0.00038356,60]
[398233860,1765443045650,-500.0,0.00038356,60]
[398233861,1765443045659,-500.0,0.00038356,60]
[398233862,1765443045667,-500.0,0.00038356,60]
[398233863,1765443045676,-500.0,0.00038356,60]
[398233864,1765443045685,-500.0,0.00038356,60]
[398233865,1765443045694,-500.0,0.00038356,60]
[398233866,1765443045702,-500.0,0.00038356,60]
[398233867,1765443045711,-500.0,0.00038356,60]
[398233868,1765443045719,-500.0,0.00038356,60]
[398233869,1765443045728,-500.0,0.00038356,60]
[398233870,1765443045736,-500.0,0.00038356,60]
[398233871,1765443045746,-500.0,0.00038356,60]
[398233872,1765443045754,-500.0,0.00038356,60]
[398233873,1765443045763,-500.0,0.00038356,60]
[398233874,1765443045771,-500.0,0.00038356,60]
[398233875,1765443045780,-500.0,0.00038356,60]
[398233876,1765443045789,-500.0,0.00038356,60]
[398233877,1765443045798,-500.65232311,0.00038356,60]
[398233878,1765443045806,-500.0,0.00038356,60]
[398233879,1765443045815,-500.0,0.00038356,60]
[398233880,1765443045824,-503.33795079,0.00038356,60]
[398233881,1765443045833,-284.21294325,0.00038356,60]
[398233882,1765443045842,-500.0,0.00038356,60]
[398233883,1765443045851,-500.0,0.00038356,60]
[398233884,1765443045859,-500.0,0.00038356,60]
[398233885,1765443045868,-500.0,0.00038356,60]
[398233886,1765443045877,-354.7407061,0.00038356,60]
[398233887,1765443045886,-500.0,0.00038356,60]
[398233888,1765443045895,-500.0,0.00038356,60]
[398233889,1765443045904,-500.0,0.00038356,60]
[398233890,1765443045913,-500.0,0.00038356,60]
[398233891,1765443045923,-155.26740061,0.00038356,60]
[398233892,1765443045932,-500.0,0.00038356,60]
[398233893,1765443045942,-500.0,0.00038356,60]
[398233894,1765443045950,-500.0,0.00038356,60]
[398233895,1765443045959,-500.0,0.00038356,60]
[398233896,1765443045968,-500.0,0.00038356,60]
[398233897,1765443045977,-500.0,0.00038356,60]
[398233898,1765443045988,-500.0,0.00038356,60]
[398233899,1765443045997,-500.0,0.00038356,60]
[398233900,1765443046006,-500.0,0.00038356,60]
[398233901,1765443046015,-500.30762663,0.00038356,60]
[398233902,1765443046024,-500.0,0.00038356,60]
[398233903,1765443046033,-500.0,0.00038356,60]
[398233904,1765443046042,-500.0,0.00038356,60]